[Event "*** SCC Grand Prix: Titled Tuesday Blitz"]
[Site "Chess.com"]
[Date "2020.07.07"]
[Round "6"]
[White "Angel_Hranitel_37"]
[Black "rududuyk"]
[Result "1-0"]
[WhiteElo "2384"]
[BlackElo "2091"]
[TimeControl "180+1"]
[EndTime "11:06:31 PDT"]
[Termination "Angel_Hranitel_37 won by resignation"]

1. d4 {[%clk 0:03:00.9]} 1... e6 {[%clk 0:02:59.8]} 2. Nf3 {[%clk 0:03:00.9]}
2... f5 {[%clk 0:03:00.2]} 3. g3 {[%clk 0:03:01.2]} 3... Nf6 {[%clk 0:03:00.7]}
4. Bg2 {[%clk 0:03:02.1]} 4... Be7 {[%clk 0:03:01.2]} 5. O-O {[%clk 0:03:03]}
5... O-O {[%clk 0:03:01.7]} 6. c4 {[%clk 0:03:03.5]} 6... d6 {[%clk 0:03:02]} 7.
b3 {[%clk 0:02:55.8]} 7... a5 {[%clk 0:02:39.1]} 8. Nc3 {[%clk 0:02:53.7]} 8...
Ne4 {[%clk 0:02:37.6]} 9. Qc2 {[%clk 0:02:38.5]} 9... Nxc3 {[%clk 0:02:36.1]}
10. Qxc3 {[%clk 0:02:39.4]} 10... Bf6 {[%clk 0:02:36.4]} 11. Bf4 {[%clk
0:02:33.8]} 11... Nc6 {[%clk 0:02:32.5]} 12. Qd2 {[%clk 0:02:32.1]} 12... Qe8
{[%clk 0:02:21]} 13. Bg5 {[%clk 0:02:31]} 13... e5 {[%clk 0:02:14.9]} 14. Bxf6
{[%clk 0:02:31]} 14... Rxf6 {[%clk 0:02:14.1]} 15. dxe5 {[%clk 0:02:18]} 15...
dxe5 {[%clk 0:02:15]} 16. Rfd1 {[%clk 0:02:17.4]} 16... f4 {[%clk 0:01:54.8]}
17. Qd5+ {[%clk 0:02:05.8]} 17... Be6 {[%clk 0:01:47.6]} 18. Qb5 {[%clk
0:02:05.7]} 18... e4 {[%clk 0:01:29.6]} 19. Ng5 {[%clk 0:01:51.8]} 19... Rf5
{[%clk 0:01:24.1]} 20. Qxb7 {[%clk 0:01:20.9]} 20... Rxg5 {[%clk 0:01:14.2]} 21.
Bxe4 {[%clk 0:01:20.8]} 21... Rc5 {[%clk 0:00:58.8]} 22. Qxc7 {[%clk 0:00:42.9]}
22... Rc8 {[%clk 0:00:46.8]} 23. Qxf4 {[%clk 0:00:41.2]} 23... Bf7 {[%clk
0:00:27.9]} 24. f3 {[%clk 0:00:29.4]} 24... Ne5 {[%clk 0:00:19.5]} 25. Rd6
{[%clk 0:00:26.8]} 25... Bg6 {[%clk 0:00:14.6]} 26. Bxg6 {[%clk 0:00:20]} 26...
Nxg6 {[%clk 0:00:15.5]} 27. Qd2 {[%clk 0:00:18.4]} 27... Re5 {[%clk 0:00:14]}
28. e4 {[%clk 0:00:18.5]} 28... Qf8 {[%clk 0:00:13.1]} 29. Kg2 {[%clk 0:00:18]}
29... Rc7 {[%clk 0:00:12.3]} 30. f4 {[%clk 0:00:17.4]} 30... Rxe4 {[%clk
0:00:11.3]} 31. Qd5+ {[%clk 0:00:17.7]} 31... Qf7 {[%clk 0:00:08.1]} 32. Qxe4
{[%clk 0:00:17]} 32... Nf8 {[%clk 0:00:07.3]} 33. Qd5 {[%clk 0:00:16.5]} 33...
Re7 {[%clk 0:00:06]} 34. Qxf7+ {[%clk 0:00:16.4]} 34... Kxf7 {[%clk 0:00:06.9]}
35. Kf2 {[%clk 0:00:16.9]} 35... Ne6 {[%clk 0:00:06.3]} 36. Re1 {[%clk
0:00:16.5]} 36... g6 {[%clk 0:00:04]} 37. Rexe6 {[%clk 0:00:16.7]} 37... Rxe6
{[%clk 0:00:03.9]} 38. Rxe6 {[%clk 0:00:17.6]} 38... Kxe6 {[%clk 0:00:04.8]} 39.
a3 {[%clk 0:00:17.7]} 39... Kd6 {[%clk 0:00:04.9]} 40. b4 {[%clk 0:00:18.3]} 1-0

[Event "*** SCC Grand Prix: Titled Tuesday Blitz"]
[Site "Chess.com"]
[Date "2020.07.07"]
[Round "6"]
[White "Nemsko"]
[Black "DonBroca"]
[Result "1-0"]
[WhiteElo "2291"]
[BlackElo "2124"]
[TimeControl "180+1"]
[EndTime "11:06:31 PDT"]
[Termination "Nemsko won by resignation"]

1. e4 {[%clk 0:03:00.9]} 1... c5 {[%clk 0:02:57.1]} 2. Nf3 {[%clk 0:02:59]} 2...
d6 {[%clk 0:02:57]} 3. d4 {[%clk 0:02:58.8]} 3... cxd4 {[%clk 0:02:57.9]} 4.
Nxd4 {[%clk 0:02:58.5]} 4... Nf6 {[%clk 0:02:58.3]} 5. Nc3 {[%clk 0:02:58]} 5...
g6 {[%clk 0:02:58.6]} 6. Be3 {[%clk 0:02:56.2]} 6... Bg7 {[%clk 0:02:58.7]} 7.
f3 {[%clk 0:02:47.8]} 7... Nc6 {[%clk 0:02:57.5]} 8. Qd2 {[%clk 0:02:48]} 8...
O-O {[%clk 0:02:56.6]} 9. O-O-O {[%clk 0:02:47.2]} 9... Bd7 {[%clk 0:02:54.8]}
10. g4 {[%clk 0:02:44.2]} 10... Rc8 {[%clk 0:02:54.1]} 11. h4 {[%clk 0:02:40.3]}
11... h5 {[%clk 0:02:51.9]} 12. g5 {[%clk 0:02:39.6]} 12... Ne8 {[%clk
0:02:49.9]} 13. f4 {[%clk 0:02:38.8]} 13... Bg4 {[%clk 0:02:44.6]} 14. Re1
{[%clk 0:02:27.3]} 14... Nb4 {[%clk 0:02:35.1]} 15. Kb1 {[%clk 0:02:21.7]} 15...
Nc7 {[%clk 0:01:39.9]} 16. Bc4 {[%clk 0:02:04]} 16... Nca6 {[%clk 0:01:38.7]}
17. Bb3 {[%clk 0:02:01.7]} 17... Nc5 {[%clk 0:01:36.2]} 18. Rhf1 {[%clk
0:01:51.5]} 18... Nxb3 {[%clk 0:01:30.6]} 19. cxb3 {[%clk 0:01:52.4]} 19... a5
{[%clk 0:01:25.8]} 20. f5 {[%clk 0:01:48.5]} 20... Nc6 {[%clk 0:00:53.6]} 21.
Nd5 {[%clk 0:00:52.2]} 21... Ne5 {[%clk 0:00:43.7]} 22. f6 {[%clk 0:00:44]}
22... exf6 {[%clk 0:00:32.6]} 23. gxf6 {[%clk 0:00:44.9]} 23... Bh8 {[%clk
0:00:32.5]} 24. Ne7+ {[%clk 0:00:38.7]} 24... Kh7 {[%clk 0:00:32.7]} 25. Nxc8
{[%clk 0:00:38.2]} 25... Qxc8 {[%clk 0:00:32]} 26. Rc1 {[%clk 0:00:38.8]} 26...
Qd7 {[%clk 0:00:30.9]} 27. Qxa5 {[%clk 0:00:30.4]} 27... Nd3 {[%clk 0:00:23.3]}
28. Rc7 {[%clk 0:00:26.8]} 28... Qe8 {[%clk 0:00:23.5]} 29. Re7 {[%clk
0:00:23.1]} 29... Qc8 {[%clk 0:00:22.1]} 30. Qb5 {[%clk 0:00:20.7]} 30... Bf3
{[%clk 0:00:19.9]} 31. Qxd3 {[%clk 0:00:19.7]} 31... Qg4 {[%clk 0:00:18.4]} 32.
Rc1 {[%clk 0:00:19.6]} 32... Be2 {[%clk 0:00:17.2]} 33. Qd2 {[%clk 0:00:19.3]}
33... Bf3 {[%clk 0:00:16.5]} 34. Nxf3 {[%clk 0:00:19.7]} 34... Qxf3 {[%clk
0:00:16.4]} 35. a3 {[%clk 0:00:19.7]} 35... Kg8 {[%clk 0:00:16.1]} 36. Rcc7
{[%clk 0:00:19.8]} 36... Bxf6 {[%clk 0:00:16]} 37. Red7 {[%clk 0:00:18.9]} 37...
Qf1+ {[%clk 0:00:15.9]} 38. Ka2 {[%clk 0:00:18.8]} 38... Be5 {[%clk 0:00:15.9]}
39. Bh6 {[%clk 0:00:19]} 39... Qf6 {[%clk 0:00:12]} 40. Bxf8 {[%clk 0:00:18.4]}
40... Bxb2 {[%clk 0:00:12]} 41. Rxf7 {[%clk 0:00:17.4]} 41... Qxf7 {[%clk
0:00:09.7]} 42. Rxf7 {[%clk 0:00:17.3]} 42... Kxf7 {[%clk 0:00:10.6]} 43. Kxb2
{[%clk 0:00:15.9]} 43... Kxf8 {[%clk 0:00:11.5]} 44. Qxd6+ {[%clk 0:00:16.1]}
44... Kg7 {[%clk 0:00:12.3]} 45. e5 {[%clk 0:00:15.8]} 45... Kh6 {[%clk
0:00:13.2]} 46. e6 {[%clk 0:00:16]} 1-0

[Event "*** SCC Grand Prix: Titled Tuesday Blitz"]
[Site "Chess.com"]
[Date "2020.07.07"]
[Round "6"]
[White "dretch"]
[Black "jacky72"]
[Result "1-0"]
[WhiteElo "2802"]
[BlackElo "2651"]
[TimeControl "180+1"]
[EndTime "11:06:32 PDT"]
[Termination "dretch won by resignation"]

1. d4 {[%clk 0:02:54.3]} 1... Nf6 {[%clk 0:02:59.1]} 2. c4 {[%clk 0:02:53.3]}
2... c6 {[%clk 0:02:59]} 3. Nc3 {[%clk 0:02:51.7]} 3... d5 {[%clk 0:02:58.2]} 4.
e3 {[%clk 0:02:52.3]} 4... a6 {[%clk 0:02:56.2]} 5. b3 {[%clk 0:02:49.1]} 5...
b5 {[%clk 0:02:51.7]} 6. Bd3 {[%clk 0:02:45.9]} 6... Bg4 {[%clk 0:02:49.9]} 7.
Nge2 {[%clk 0:02:39.5]} 7... e6 {[%clk 0:02:49.3]} 8. O-O {[%clk 0:02:37.2]}
8... Nbd7 {[%clk 0:02:49.3]} 9. f3 {[%clk 0:02:28.9]} 9... Bh5 {[%clk
0:02:48.8]} 10. cxd5 {[%clk 0:02:27.5]} 10... cxd5 {[%clk 0:02:47.4]} 11. e4
{[%clk 0:02:27.2]} 11... Be7 {[%clk 0:02:41.6]} 12. e5 {[%clk 0:01:48.7]} 12...
Ng8 {[%clk 0:02:40.7]} 13. f4 {[%clk 0:01:44.1]} 13... Bb4 {[%clk 0:02:37.9]}
14. Bd2 {[%clk 0:01:26.8]} 14... Ne7 {[%clk 0:02:37.4]} 15. Nxb5 {[%clk
0:01:19.8]} 15... axb5 {[%clk 0:02:32.9]} 16. Bxb4 {[%clk 0:01:19.3]} 16... Nc6
{[%clk 0:02:31.4]} 17. Qd2 {[%clk 0:01:13.6]} 17... Qb6 {[%clk 0:02:30.4]} 18.
Rfc1 {[%clk 0:00:59.3]} 18... Bxe2 {[%clk 0:02:11.7]} 19. Bxe2 {[%clk
0:00:59.1]} 19... Nxd4 {[%clk 0:02:11.8]} 20. Kf1 {[%clk 0:00:59.1]} 20... f6
{[%clk 0:01:53.4]} 21. exf6 {[%clk 0:00:54.3]} 21... gxf6 {[%clk 0:01:53]} 22.
Bh5+ {[%clk 0:00:53.2]} 22... Kd8 {[%clk 0:01:53.3]} 23. Qf2 {[%clk 0:00:45.1]}
23... Nf5 {[%clk 0:01:39.7]} 24. Qxb6+ {[%clk 0:00:44.6]} 24... Nxb6 {[%clk
0:01:40.6]} 25. Rc6 {[%clk 0:00:42.7]} 25... Nd7 {[%clk 0:01:40.7]} 26. Rxe6
{[%clk 0:00:25.5]} 26... Nd4 {[%clk 0:01:40.8]} 27. Ree1 {[%clk 0:00:20.2]}
27... Nc6 {[%clk 0:01:26.8]} 28. Bd6 {[%clk 0:00:20.3]} 28... Nb6 {[%clk
0:01:27.2]} 29. Bg4 {[%clk 0:00:16.3]} 29... Nc8 {[%clk 0:01:26.9]} 30. Bc5
{[%clk 0:00:16.1]} 30... N8e7 {[%clk 0:01:22.3]} 31. Re6 {[%clk 0:00:15.4]}
31... f5 {[%clk 0:01:20.8]} 32. Bf3 {[%clk 0:00:13.5]} 32... Rg8 {[%clk
0:01:04.7]} 33. Rae1 {[%clk 0:00:12.8]} 33... Rg7 {[%clk 0:01:04.7]} 34. R1e2
{[%clk 0:00:10.2]} 34... Kd7 {[%clk 0:00:54.8]} 35. g3 {[%clk 0:00:10.7]} 35...
b4 {[%clk 0:00:49.9]} 36. Rd6+ {[%clk 0:00:11]} 36... Kc7 {[%clk 0:00:49.6]} 37.
Rde6 {[%clk 0:00:11.4]} 37... Kd7 {[%clk 0:00:48.9]} 38. Bxd5 {[%clk 0:00:10.4]}
38... Nxd5 {[%clk 0:00:45.6]} 39. Rd6+ {[%clk 0:00:10.9]} 39... Kc7 {[%clk
0:00:46.5]} 40. Rxd5 {[%clk 0:00:11.8]} 40... Rf7 {[%clk 0:00:36.4]} 41. Rc2
{[%clk 0:00:11.9]} 41... Kb7 {[%clk 0:00:35.3]} 42. Bf2 {[%clk 0:00:11.7]} 42...
Ra5 {[%clk 0:00:33.1]} 43. Rd6 {[%clk 0:00:08.9]} 43... Rc7 {[%clk 0:00:28.4]}
44. Rf6 {[%clk 0:00:08.6]} 44... Nd8 {[%clk 0:00:25]} 45. Rxc7+ {[%clk
0:00:08.3]} 45... Kxc7 {[%clk 0:00:25.9]} 46. Bb6+ {[%clk 0:00:08.8]} 46... Kd7
{[%clk 0:00:26.8]} 47. Bxa5 {[%clk 0:00:09]} 47... Ke7 {[%clk 0:00:27.7]} 48.
Bxd8+ {[%clk 0:00:08.6]} 48... Kxd8 {[%clk 0:00:28.6]} 49. Rxf5 {[%clk 0:00:09]}
1-0

[Event "*** SCC Grand Prix: Titled Tuesday Blitz"]
[Site "Chess.com"]
[Date "2020.07.07"]
[Round "6"]
[White "VishnuPrasanna"]
[Black "MergenKakabaev"]
[Result "1-0"]
[WhiteElo "2751"]
[BlackElo "2441"]
[TimeControl "180+1"]
[EndTime "11:06:33 PDT"]
[Termination "VishnuPrasanna won on time"]

1. d4 {[%clk 0:03:00.9]} 1... d5 {[%clk 0:02:59.4]} 2. c4 {[%clk 0:03:00.5]}
2... c6 {[%clk 0:02:59.4]} 3. Nf3 {[%clk 0:02:59.4]} 3... Nf6 {[%clk 0:02:58.8]}
4. Nc3 {[%clk 0:02:59.9]} 4... e6 {[%clk 0:02:58.9]} 5. Bg5 {[%clk 0:02:59.3]}
5... dxc4 {[%clk 0:02:58.2]} 6. e4 {[%clk 0:02:57.9]} 6... b5 {[%clk 0:02:57.9]}
7. e5 {[%clk 0:02:58]} 7... h6 {[%clk 0:02:58]} 8. Bh4 {[%clk 0:02:58.5]} 8...
g5 {[%clk 0:02:58]} 9. exf6 {[%clk 0:02:58.9]} 9... gxh4 {[%clk 0:02:57.2]} 10.
Ne5 {[%clk 0:02:59.4]} 10... Bb7 {[%clk 0:02:49]} 11. a4 {[%clk 0:02:46.4]}
11... a6 {[%clk 0:02:41.3]} 12. Be2 {[%clk 0:01:57.9]} 12... Nd7 {[%clk
0:02:40.5]} 13. Nxf7 {[%clk 0:01:27.9]} 13... Kxf7 {[%clk 0:02:19.5]} 14. Bh5+
{[%clk 0:01:28.2]} 14... Kxf6 {[%clk 0:02:19.6]} 15. Qf3+ {[%clk 0:01:28.6]}
15... Ke7 {[%clk 0:02:19.7]} 16. Ne4 {[%clk 0:01:28.9]} 16... Rh7 {[%clk
0:02:13.8]} 17. Qf4 {[%clk 0:01:26.5]} 17... Nb6 {[%clk 0:02:04.5]} 18. Qxh4+
{[%clk 0:00:55.2]} 18... Kd7 {[%clk 0:02:03.7]} 19. Qg4 {[%clk 0:00:53.7]} 19...
Kc7 {[%clk 0:01:53.8]} 20. O-O {[%clk 0:00:49.6]} 20... Rg7 {[%clk 0:01:46.2]}
21. Qxe6 {[%clk 0:00:49.7]} 21... Nd5 {[%clk 0:01:41]} 22. Qe5+ {[%clk
0:00:49.9]} 22... Kb6 {[%clk 0:01:38.2]} 23. axb5 {[%clk 0:00:47.9]} 23... axb5
{[%clk 0:01:34.8]} 24. Rxa8 {[%clk 0:00:47]} 24... Qxa8 {[%clk 0:01:32.3]} 25.
Nc5 {[%clk 0:00:44.1]} 25... Rg5 {[%clk 0:01:23]} 26. Nd7+ {[%clk 0:00:41.5]}
26... Ka7 {[%clk 0:01:11.7]} 27. Ra1+ {[%clk 0:00:31.6]} 27... Ba6 {[%clk
0:01:11.5]} 28. Qe6 {[%clk 0:00:32]} 28... Nf4 {[%clk 0:00:13]} 29. Qf7 {[%clk
0:00:31.2]} 29... Nxh5 {[%clk 0:00:12.5]} 30. Nc5+ {[%clk 0:00:30.6]} 30... Kb6
{[%clk 0:00:12.1]} 31. Nd7+ {[%clk 0:00:28.6]} 31... Ka7 {[%clk 0:00:10.1]} 32.
Nc5+ {[%clk 0:00:26.4]} 32... Kb6 {[%clk 0:00:09.9]} 33. Rxa6+ {[%clk
0:00:26.9]} 33... Qxa6 {[%clk 0:00:09.5]} 34. Nxa6 {[%clk 0:00:26.9]} 34... Bd6
{[%clk 0:00:09.3]} 35. h4 {[%clk 0:00:26.4]} 35... Rg7 {[%clk 0:00:08.1]} 36.
Qe6 {[%clk 0:00:24.7]} 36... Rxg2+ {[%clk 0:00:02]} 37. Kf1 {[%clk 0:00:24.5]}
1-0

[Event "*** SCC Grand Prix: Titled Tuesday Blitz"]
[Site "Chess.com"]
[Date "2020.07.07"]
[Round "6"]
[White "annamaja"]
[Black "GianmarcoVaR"]
[Result "0-1"]
[WhiteElo "2270"]
[BlackElo "2537"]
[TimeControl "180+1"]
[EndTime "11:06:33 PDT"]
[Termination "GianmarcoVaR won by checkmate"]

1. e4 {[%clk 0:03:00.9]} 1... c6 {[%clk 0:02:58]} 2. d4 {[%clk 0:03:01]} 2... d5
{[%clk 0:02:57.8]} 3. e5 {[%clk 0:02:55.7]} 3... Bf5 {[%clk 0:02:55.9]} 4. Bd3
{[%clk 0:02:45]} 4... Bxd3 {[%clk 0:02:54.5]} 5. Qxd3 {[%clk 0:02:45.9]} 5... e6
{[%clk 0:02:52.8]} 6. f4 {[%clk 0:02:41.4]} 6... Nh6 {[%clk 0:02:40.7]} 7. Nf3
{[%clk 0:02:37.6]} 7... Nf5 {[%clk 0:02:32.1]} 8. Nc3 {[%clk 0:02:04.6]} 8... a6
{[%clk 0:02:22.5]} 9. a4 {[%clk 0:01:48.5]} 9... c5 {[%clk 0:02:21]} 10. a5
{[%clk 0:01:28.1]} 10... Nc6 {[%clk 0:02:06.8]} 11. dxc5 {[%clk 0:01:08.3]}
11... Bxc5 {[%clk 0:02:03.9]} 12. Ra4 {[%clk 0:00:37.5]} 12... Rc8 {[%clk
0:01:52.2]} 13. Na2 {[%clk 0:00:24.4]} 13... O-O {[%clk 0:01:11.4]} 14. c4
{[%clk 0:00:23.6]} 14... dxc4 {[%clk 0:00:56.1]} 15. Qxd8 {[%clk 0:00:21]} 15...
Rfxd8 {[%clk 0:00:56.7]} 16. Rxc4 {[%clk 0:00:21]} 16... Nxa5 {[%clk 0:00:57.2]}
17. Ra4 {[%clk 0:00:14.7]} 17... Nb3 {[%clk 0:00:53.5]} 18. g4 {[%clk
0:00:09.7]} 18... Nxc1 {[%clk 0:00:38.1]} 19. Nxc1 {[%clk 0:00:08.8]} 19... Ne3
{[%clk 0:00:36.1]} 20. Ke2 {[%clk 0:00:06.7]} 20... Nd5 {[%clk 0:00:32.8]} 21.
Nd3 {[%clk 0:00:06]} 21... Bb6 {[%clk 0:00:32.9]} 22. Rd1 {[%clk 0:00:03.2]}
22... Rc2+ {[%clk 0:00:32.4]} 23. Rd2 {[%clk 0:00:02.9]} 23... Rdc8 {[%clk
0:00:32.6]} 24. Rxc2 {[%clk 0:00:02.1]} 24... Rxc2+ {[%clk 0:00:33.1]} 25. Nd2
{[%clk 0:00:02.7]} 25... Be3 {[%clk 0:00:32]} 26. Rc4 {[%clk 0:00:03]} 26...
Rxd2+ {[%clk 0:00:31.3]} 27. Kf3 {[%clk 0:00:03.5]} 27... h5 {[%clk 0:00:29]}
28. Rc8+ {[%clk 0:00:02.9]} 28... Kh7 {[%clk 0:00:29.1]} 29. Ne1 {[%clk
0:00:02.4]} 29... h4 {[%clk 0:00:18.2]} 30. Ke4 {[%clk 0:00:01.3]} 30... Rd4+
{[%clk 0:00:15.4]} 31. Kf3 {[%clk 0:00:01.8]} 31... Rxf4+ {[%clk 0:00:15.8]} 32.
Ke2 {[%clk 0:00:02.4]} 32... Rf2+ {[%clk 0:00:15.8]} 33. Kd3 {[%clk 0:00:03]}
33... h3 {[%clk 0:00:15.3]} 34. g5 {[%clk 0:00:03.3]} 34... Bxg5 {[%clk
0:00:13.7]} 35. Rb8 {[%clk 0:00:04]} 35... Rxb2 {[%clk 0:00:12.7]} 36. Ke4
{[%clk 0:00:04]} 36... Re2+ {[%clk 0:00:12.3]} 37. Kf3 {[%clk 0:00:04.5]} 37...
Rxe1 {[%clk 0:00:12.6]} 38. Kg4 {[%clk 0:00:05.4]} 38... Rg1+ {[%clk 0:00:12.5]}
39. Kh5 {[%clk 0:00:06.2]} 39... Nf4# {[%clk 0:00:12.5]} 0-1

[Event "*** SCC Grand Prix: Titled Tuesday Blitz"]
[Site "Chess.com"]
[Date "2020.07.07"]
[Round "6"]
[White "jaskol95"]
[Black "Roman_Ovetchkin"]
[Result "1-0"]
[WhiteElo "2414"]
[BlackElo "2563"]
[TimeControl "180+1"]
[EndTime "11:06:35 PDT"]
[Termination "jaskol95 won on time"]

1. d4 {[%clk 0:03:00.9]} 1... Nf6 {[%clk 0:02:59.7]} 2. c4 {[%clk 0:03:00.9]}
2... g6 {[%clk 0:03:00]} 3. Nc3 {[%clk 0:03:00.9]} 3... Bg7 {[%clk 0:03:00.6]}
4. e4 {[%clk 0:03:01]} 4... d6 {[%clk 0:03:01]} 5. Be3 {[%clk 0:03:01.2]} 5...
O-O {[%clk 0:02:59.8]} 6. Be2 {[%clk 0:03:01.1]} 6... c5 {[%clk 0:02:57.3]} 7.
dxc5 {[%clk 0:02:57.4]} 7... Qa5 {[%clk 0:02:55.9]} 8. Qd2 {[%clk 0:02:51.4]}
8... dxc5 {[%clk 0:02:55.5]} 9. f3 {[%clk 0:02:21.8]} 9... Rd8 {[%clk
0:02:46.7]} 10. Qc2 {[%clk 0:02:21.6]} 10... Nc6 {[%clk 0:02:44.9]} 11. Kf2
{[%clk 0:02:13.8]} 11... Nd4 {[%clk 0:02:29.1]} 12. Qa4 {[%clk 0:02:09.4]} 12...
Qxa4 {[%clk 0:02:20.3]} 13. Nxa4 {[%clk 0:02:10.3]} 13... Nc2 {[%clk 0:02:20.4]}
14. Rd1 {[%clk 0:02:10.1]} 14... Rxd1 {[%clk 0:02:18.4]} 15. Bxd1 {[%clk
0:02:11]} 15... Nxe3 {[%clk 0:02:18.3]} 16. Kxe3 {[%clk 0:02:11.9]} 16... b6
{[%clk 0:02:18.5]} 17. Ne2 {[%clk 0:02:09.2]} 17... Nd7 {[%clk 0:02:14.3]} 18.
Nac3 {[%clk 0:02:07.2]} 18... Ne5 {[%clk 0:02:09.9]} 19. b3 {[%clk 0:02:05.6]}
19... Bb7 {[%clk 0:02:06.8]} 20. Bc2 {[%clk 0:02:03.2]} 20... Nc6 {[%clk
0:02:03.5]} 21. Rd1 {[%clk 0:01:54.2]} 21... Nd4 {[%clk 0:02:03.1]} 22. Bb1
{[%clk 0:01:50.6]} 22... Bc6 {[%clk 0:01:48.8]} 23. f4 {[%clk 0:01:46.1]} 23...
e5 {[%clk 0:01:34.6]} 24. g3 {[%clk 0:01:40]} 24... Re8 {[%clk 0:01:29.8]} 25.
Nd5 {[%clk 0:01:35.1]} 25... f5 {[%clk 0:01:16.8]} 26. fxe5 {[%clk 0:01:30.8]}
26... Nxe2 {[%clk 0:00:41.7]} 27. Kxe2 {[%clk 0:01:24.8]} 27... Rxe5 {[%clk
0:00:39.4]} 28. Kf3 {[%clk 0:01:20.2]} 28... Kf7 {[%clk 0:00:32.9]} 29. exf5
{[%clk 0:01:18.8]} 29... gxf5 {[%clk 0:00:31.5]} 30. Kf4 {[%clk 0:01:03.9]}
30... Re2 {[%clk 0:00:28.3]} 31. Kxf5 {[%clk 0:00:56.3]} 31... Rxh2 {[%clk
0:00:11.7]} 32. Nf4 {[%clk 0:00:52.8]} 32... Rf2 {[%clk 0:00:08]} 33. Rd6 {[%clk
0:00:45.7]} 33... Be8 {[%clk 0:00:07]} 34. Be4 {[%clk 0:00:41.4]} 34... Ke7
{[%clk 0:00:05.9]} 35. Re6+ {[%clk 0:00:37.3]} 35... Kf8 {[%clk 0:00:06]} 36.
Bc6 {[%clk 0:00:28.2]} 36... Bg6+ {[%clk 0:00:02.4]} 37. Kg4 {[%clk 0:00:27.4]}
37... Bb1 {[%clk 0:00:02.3]} 38. Re8+ {[%clk 0:00:20.4]} 38... Kf7 {[%clk
0:00:02.2]} 39. Rb8 {[%clk 0:00:21]} 39... Be5 {[%clk 0:00:01.2]} 40. Rb7+
{[%clk 0:00:20]} 1-0

[Event "*** SCC Grand Prix: Titled Tuesday Blitz"]
[Site "Chess.com"]
[Date "2020.07.07"]
[Round "6"]
[White "Zmof"]
[Black "GustavoJuarezF"]
[Result "1/2-1/2"]
[WhiteElo "2208"]
[BlackElo "2005"]
[TimeControl "180+1"]
[EndTime "11:06:37 PDT"]
[Termination "Game drawn - insufficient material"]

1. e4 {[%clk 0:03:00.9]} 1... c5 {[%clk 0:02:59.1]} 2. Nf3 {[%clk 0:02:57.3]}
2... Nc6 {[%clk 0:02:58.3]} 3. Bb5 {[%clk 0:02:55.1]} 3... g6 {[%clk 0:02:56.2]}
4. Bxc6 {[%clk 0:02:52.9]} 4... dxc6 {[%clk 0:02:52.4]} 5. d3 {[%clk 0:02:52.6]}
5... Bg7 {[%clk 0:02:51.9]} 6. h3 {[%clk 0:02:52.4]} 6... e5 {[%clk 0:02:51.8]}
7. O-O {[%clk 0:02:50.9]} 7... Ne7 {[%clk 0:02:45.7]} 8. Nc3 {[%clk 0:02:44.8]}
8... h6 {[%clk 0:02:42.4]} 9. Be3 {[%clk 0:02:33.6]} 9... b6 {[%clk 0:02:41.5]}
10. Nh2 {[%clk 0:02:31]} 10... Bd7 {[%clk 0:02:33]} 11. f4 {[%clk 0:02:26.7]}
11... exf4 {[%clk 0:02:32.2]} 12. Bxf4 {[%clk 0:02:24.9]} 12... O-O {[%clk
0:02:32.3]} 13. Qd2 {[%clk 0:02:14.8]} 13... Kh7 {[%clk 0:02:31.4]} 14. Rae1
{[%clk 0:02:13.7]} 14... Be6 {[%clk 0:02:30.3]} 15. Nf3 {[%clk 0:02:06.3]} 15...
Qd7 {[%clk 0:02:25.2]} 16. Kh1 {[%clk 0:01:54.2]} 16... Rad8 {[%clk 0:02:23.8]}
17. Qe2 {[%clk 0:01:42.2]} 17... g5 {[%clk 0:02:09.5]} 18. Be5 {[%clk
0:01:40.2]} 18... Ng6 {[%clk 0:02:05.1]} 19. Bxg7 {[%clk 0:01:38.9]} 19... Kxg7
{[%clk 0:02:04.6]} 20. Qe3 {[%clk 0:01:29.8]} 20... f5 {[%clk 0:02:02.4]} 21.
exf5 {[%clk 0:01:25.5]} 21... Bxf5 {[%clk 0:02:01.5]} 22. Ne5 {[%clk 0:01:15.8]}
22... Qe6 {[%clk 0:01:35.5]} 23. Nxg6 {[%clk 0:01:14.6]} 23... Qxe3 {[%clk
0:01:34.2]} 24. Rxe3 {[%clk 0:01:12.4]} 24... Bxg6 {[%clk 0:01:30.6]} 25. Re7+
{[%clk 0:01:11]} 25... Kg8 {[%clk 0:01:19.7]} 26. Rxf8+ {[%clk 0:01:04.9]} 26...
Rxf8 {[%clk 0:01:19.1]} 27. Kg1 {[%clk 0:01:01.2]} 27... Re8 {[%clk 0:00:59.6]}
28. Rxa7 {[%clk 0:00:52.7]} 28... Re1+ {[%clk 0:00:59.1]} 29. Kh2 {[%clk
0:00:50.5]} 29... Rc1 {[%clk 0:00:59.7]} 30. Rb7 {[%clk 0:00:50.2]} 30... Rxc2
{[%clk 0:00:57.8]} 31. Rxb6 {[%clk 0:00:50.3]} 31... Bxd3 {[%clk 0:00:56.6]} 32.
Rxc6 {[%clk 0:00:47.4]} 32... c4 {[%clk 0:00:56.9]} 33. Rxh6 {[%clk 0:00:43.1]}
33... Rxb2 {[%clk 0:00:56.3]} 34. Rh5 {[%clk 0:00:42.3]} 34... Rc2 {[%clk
0:00:48.8]} 35. Rxg5+ {[%clk 0:00:41.7]} 35... Kf7 {[%clk 0:00:48.2]} 36. Nd5
{[%clk 0:00:37.3]} 36... Rxa2 {[%clk 0:00:47.3]} 37. h4 {[%clk 0:00:33.4]} 37...
Ra5 {[%clk 0:00:37.8]} 38. Nc3 {[%clk 0:00:28.9]} 38... Rxg5 {[%clk 0:00:34.9]}
39. hxg5 {[%clk 0:00:29]} 39... Kg6 {[%clk 0:00:35.1]} 40. Kg3 {[%clk
0:00:26.8]} 40... Kxg5 {[%clk 0:00:35.2]} 41. Kf3 {[%clk 0:00:27.1]} 41... Bf1
{[%clk 0:00:31.8]} 42. g3 {[%clk 0:00:25.8]} 42... Kf5 {[%clk 0:00:29.4]} 43.
g4+ {[%clk 0:00:13.1]} 43... Kg6 {[%clk 0:00:26.7]} 44. Nb5 {[%clk 0:00:11.5]}
44... Bd3 {[%clk 0:00:24.6]} 45. Ke3 {[%clk 0:00:11.1]} 45... Kg5 {[%clk
0:00:23.6]} 46. Kd4 {[%clk 0:00:11.4]} 46... Kxg4 {[%clk 0:00:22.6]} 47. Nd6
{[%clk 0:00:11.9]} 47... Bf1 {[%clk 0:00:21.1]} 48. Nxc4 {[%clk 0:00:12]}
1/2-1/2